Cogmind - Beta 11.1 @@@ ROGUE MODE // 2022.05.31 @ 23:51:45 Player: Hanyouslayer Result: Destroyed by G-34 Mercenary with Small Laser Performance ------------- Evolutions (0) 0 Regions Visited (1) 200 Robots Destroyed (1) 5 Value Destroyed (46) 46 Prototype IDs (0) 0 Alien Tech Used (0) 0 Bonus (0) 0 TOTAL SCORE: 251 Bonus ------- None Cogmind --------- Core Integrity 0/250 Matter 22/300 Energy 100/100 System Corruption 1% Temperature Cool (6) Movement Core (700) Ox13 Location -10/Materials Parts ------- > --- POWER (1) -------- (None) > --- PROPULSION (2) --- (None) > --- UTILITY (2) ------ High-capacity Storage Unit > --- WEAPON (2) ------- (None) > --- INVENTORY (20) --- Large Storage Unit High-capacity Matter Pod (0) Structural Scanner Sensor Array Signal Interpreter Power Shielding Grenade Launcher Peak State ------------ > --- POWER ------------ (None) > --- PROPULSION ------- Wheel Wheel > --- UTILITY ---------- Sensor Array Signal Interpreter > --- WEAPON ----------- Grenade Launcher > --- INVENTORY -------- (None) [Rating: 5] Favorites ----------- Power None Propulsion Wheel Wheel Wheel Utility Signal Interpreter Device Sensor Array Storage High-capacity Storage Unit Processor Signal Interpreter Weapon Grenade Launcher Launcher Grenade Launcher Build | -11 -10 ------- Run | Scr Mat Slots Evolved . | . . Power . | . . Propulsion . | . . Utility . | . . Weapon . | . . Parts Attached 7 | 2 5 Power . | . . Engine . | . . Core . | . . Reactor . | . . Propulsion 2 | 2 . Treads . | . . Leg . | . . Wheel 2 | 2 . Hover . | . . Flight . | . . Utility 4 | . 4 Device 1 | . 1 Storage 2 | . 2 Processor 1 | . 1 Hackware . | . . Protection . | . . Artifact . | . . Weapon 1 | . 1 Energy Gun . | . . Energy Cannon . | . . Ballistic Gun . | . . Ballistic Cannon . | . . Launcher 1 | . 1 Special Weapon . | . . Impact Weapon . | . . Slashing Weapon . | . . Piercing Weapon . | . . Special Melee Weapon . | . . Unidentified Prototypes . | . . Parts Lost 2 | . 2 Power . | . . Propulsion 2 | . 2 Utility . | . . Weapon . | . . Highest Loss Streak 1 | . 1 To Critical Strikes . | . . Average Slot Usage (%) 50 | . 50 Wheel 19 | . 19 Storage 9 | . 9 Processor 9 | . 9 Launcher 11 | . 11 Naked Turns . | . . Heaviest Build 43 | . 43 Greatest Support 20 | 20 20 Greatest Overweight (x) 4 | . 4 Average Overweight (x) 1 | . 1 Largest Inventory Capacity 20 | 5 20 Average Capacity 13 | 5 14 Most Carried 7 | . 7 Average Carried 3 | . 3 Final Capacity 20 | 5 20 Final Carried 7 | . 7 Class Distribution -------------------- 100% | Mutant Dominant Class ---------------- Mutant | -10/Materials Resources | -11 -10 ----------- Run | Scr Mat Matter Collected 10 | . 10 Remotely . | . . Salvage Created 10 | . 10 Parts 1 | . 1 Haulers Intercepted . | . . Recyclers Shooed . | . . Parts Field Recycled . | . . Retrieved Matter . | . . Parts Self-Destructed . | . . Prevented . | . . Kills | -11 -10 ------- Run | Scr Mat Combat Hostiles Destroyed . | . . Classes Destroyed 1 | . 1 Watcher 1 | . 1 Best Kill Streak 1 | . 1 Combat Bots Only . | . . Max Kills in Single Turn 1 | . 1 Gunslinging . | . . Exploded . | . . Melee . | . . Uniques/NPCs Destroyed . | . . Combat | -11 -10 -------- Run | Scr Mat Damage Taken 417 | . 417 Core 256 | . 256 Absorbed by Shields . | . . Core Remaining (%) 100 | 100 . Volleys Fired 5 | . 5 Largest 1 | . 1 Hottest 30 | . 30 Shots Fired 5 | . 5 Gun . | . . Cannon . | . . Launcher 5 | . 5 Special . | . . Kinetic . | . . Thermal . | . . Explosive 5 | . 5 Electromagnetic . | . . Robot Hit Streak 1 | . 1 Robot Miss Streak 1 | . 1 Penetration Max . | . . Secondary Targets . | . . Shots Hit Robots 1 | . 1 Core Hits 3 | . 3 Critical Kills . | . . Critical Parts Destroyed . | . . Critical Strikes . | . . Melee Attacks . | . . Impact . | . . Slashing . | . . Piercing . | . . Sneak Attacks . | . . Combat Hostiles . | . . Follow-up Attacks . | . . Damage Inflicted 69 | . 69 Guns . | . . Cannons . | . . Explosions 39 | . 39 Melee . | . . Ramming 30 | . 30 Kinetic . | . . Thermal . | . . Explosive 39 | . 39 Electromagnetic . | . . Impact . | . . Slashing . | . . Piercing . | . . Highest Corruption 1 | . 1 Average Corruption 1 | . 1 Corruption Purged . | . . Corruption Blocked . | . . Overload Shots . | . . Overflow Damage 23 | . 23 Projectiles . | . . Explosions 23 | . 23 Melee . | . . Knockbacks . | . . Impact . | . . Kinetic . | . . Secondary . | . . Self-Inflicted Damage 129 | . 129 Shots 3 | . 3 Rammed 6 | . 6 Targets Rammed 6 | . 6 Kicked . | . . Crushed . | . . Highest Temperature . | . . Average Temperature . | . . Received Heat Transfer 36 | . 36 Siege Activations . | . . Robots Corrupted . | . . Combat Hostiles . | . . Parts Fried . | . . Impact Corruptions . | . . Robots Melted . | . . Combat Hostiles . | . . Parts Melted . | . . Heat Transferred . | . . Parts Sabotaged . | . . Parts Stolen . | . . Parts Stripped . | . . Power Chain Reactions . | . . Missiles Intercepted . | . . Alert | -11 -10 ------- Run | Scr Mat Peak Influence 319 | . 319 Initial . | . . Average 156 | . 167 Maximum Alert Level 1 | . 1 Low Security (%) 48 | 100 45 Level 1 51 | . 54 Level 2 . | . . Level 3 . | . . Level 4 . | . . Level 5 . | . . High Security . | . . Max Security . | . . Squads Dispatched 1 | . 1 Investigation . | . . Extermination . | . . Reinforcement 1 | . 1 Assault . | . . Garrison . | . . Intercept . | . . Searches Triggered . | . . Construction Impeded . | . . Haulers Reinforced . | . . Active Scanning Responses . | . . Cargo Convoy Interrupts . | . . Stealth | -11 -10 --------- Run | Scr Mat Distress Signals . | . . Communications Jammed . | . . Distress Signals . | . . Times Spotted 6 | . 6 Peak Tracking Total 4 | . 4 Tactical Retreats . | . . Traps | -11 -10 ------- Run | Scr Mat Traps Triggered . | . . Indirectly . | . . Trap Hack Attempts . | . . Triggered . | . . Disarmed . | . . Reprogrammed . | . . Reused . | . . Traps Extracted . | . . Installed . | . . Triggered . | . . Machines | -11 -10 ---------- Run | Scr Mat Machines Disabled 3 | . 3 Max in Single Turn 3 | . 3 Machines Sabotaged . | . . Garrisons Compromised . | . . Overloaded Fab Kills . | . . Hacking | -11 -10 --------- Run | Scr Mat Machines Accessed 2 | . 2 Terminals 2 | . 2 Fabricators . | . . Repair Stations . | . . Recycling Units . | . . Scanalyzers . | . . Garrison Access . | . . Total Hacks 3 | . 3 Successful 1 | . 1 Failed 2 | . 2 Catastrophic . | . . Database Lockouts . | . . Manual 3 | . 3 Terminals 3 | . 3 Fabricators . | . . Repair Stations . | . . Recycling Units . | . . Scanalyzers . | . . Garrison Access . | . . Terminal Hacks 1 | . 1 Registered Components 1 | . 1 Fabricator Hacks . | . . Repair Station Hacks . | . . Recycling Unit Hacks . | . . Scanalyzer . | . . Garrison Access Hacks . | . . Unauthorized Hacks . | . . Terminals . | . . Fabricators . | . . Repair Stations . | . . Recycling Units . | . . Scanalyzers . | . . Garrison Access . | . . Data Cores Recovered . | . . Used . | . . Hacking Detections 1 | . 1 Full Trace Events . | . . Feedback Events . | . . Feedback Blocked . | . . Robot Schematics Acquired . | . . Robots Built . | . . Authchips . | . . Time . | . . Total Robot Build Rating . | . . Part Schematics Acquired . | . . Parts Built . | . . Authchips . | . . Time . | . . Total Part Build Rating . | . . Parts Repaired . | . . Time . | . . Parts Recycled . | . . Recycled Matter . | . . Retrieved Matter . | . . Retrieved Components . | . . Parts Scanalyzed . | . . Part Schematics Acquired . | . . Parts Damaged . | . . Bothacking | -11 -10 ------------ Run | Scr Mat Used RIF Installer . | . . Robots Hacked . | . . Non-combat . | . . Combat . | . . Robot Hacks Applied . | . . Relay Couplers Released . | . . Fabnet Peak Effective % . | . . Robots Rewired . | . . Allies Hacked . | . . Hacks Repelled . | . . Allies | -11 -10 -------- Run | Scr Mat Total Allies . | . . Largest Group . | . . Highest-Rated Group . | . . Highest-Rated Ally . | . . Total Orders . | . . Ally Attacks . | . . Total Damage . | . . Kills . | . . Allies Corrupted . | . . Allies Melted . | . . Intel | -11 -10 ------- Run | Scr Mat Robot Analysis Total . | . . Derelict Logs Recovered . | . . Drone Launches . | . . Drone Recoveries . | . . Exploration | -11 -10 ------------- Run | Scr Mat Turns Passed 279 | 18 261 Spaces Moved 232 | 20 212 Core 3 | 3 . Treads . | . . Legs . | . . Wheels 229 | 17 212 Hover . | . . Flight . | . . Fastest Speed 50 | 50 80 Average Speed 101 | 75 104 Slowest Speed 140 | 80 140 Overloaded Moves . | . . Propulsion Burnouts . | . . Robots Hopped . | . . Cave-ins Triggered . | . . Exploration Rate (%) 18 | 3 33 Regions Visited 1 Branch Regions . Pre-discovered Areas . | . . Known Exits Taken . | . . Unknown Exits Taken 1 | 1 . Scrap Searched . | . . Spaces Dug 6 | . 6 Terrain Destroyed 81 | . 81 Melee . | . . Projectile . | . . AOE 81 | . 81 Terrain Rammed . | . . Walls Destroyed . | . . Machines Disabled . | . . Actions | -11 -10 --------- Run | Scr Mat Total 256 | 21 235 Wait . | . . Move 231 | 19 212 Hop . | . . Pick Up 4 | . 4 Fast Attach 6 | 2 4 Attach . | . . Detach 2 | . 2 Swap 1 | . 1 Drop 1 | . 1 Fire 5 | . 5 Melee . | . . Ram 6 | . 6 Kick . | . . Crush . | . . Escape Stasis . | . . Rewire . | . . Trap . | . . Miscellaneous . | . . Route ------- -11/Scrapyard -10/Materials (discovered 1 exit: [*Min]) History --------- Turn | Location | Event 2 | -11/Scrapyard | Discovered new exit (range 16) 19 | -11/Scrapyard | Entered Materials 109 | -10/Materials | Discovered new exit (range 16) 273 | -10/Materials | Core integrity fell below 50% 278 | -10/Materials | Core integrity fell below 20% 280 | -10/Materials | Destroyed by G-34 Mercenary with Small Laser Last Messages --------------- 00205_ U-05 Engineer lays Concrete. 00205_ K-01 Serf collects debris. 00205_ U-05 Engineer builds a Wall. 00206_ U-05 Engineer lays Concrete. 00208_ K-01 Serf collects debris. 00208_ U-05 Engineer lays Concrete. 00216_ Acquired 10 matter. 00221_ R-06 Scavenger collects Hover Unit. 00260_ Acquired Hcp. Matter Pod. 00261_ Discarded Signal Interpreter. 00263_ Connecting with Terminal... >>Inventory(Components) Retrieving component inventory records... No registered component stockpiles. 00265_ Slammed into S-10 Pest. 00268_ Destabilizing: Core damaged (-7). 00268_ Wheel destroyed. 00269_ Slammed into S-10 Pest. 00269_ Destabilizing: System corrupted (+1). 00276_ Slammed into S-10 Pest. Map ----- +----------------------------------------------------+ | ?????????????????????????????????????????????????? | | ?????????????????????????????????????????????????? | | ?????????????????????????????????????????????????? | | ?????????????????????????????????????????????????? | | ?????????????????????????????????????????????????? | | ?????????????????????????????????????????????????? | | ?????????????????????????????????????????????????? | | ?????????????????????????????????????????????????? | | ?????????????????????????????????????????????????? | | ?????????????????????????????????????????????????? | | ?????????????????????????????????????????????????? | | ????????????????????????????????????????????????? | | ??????##########????????????????????????????????? | | ??????# #????????????????????????????????? | | #?????# ! #????????????????????????????????? | | #?????# !! ###+####?????????????????????????? | | #?????# # #?????????????????????????? | | #?????# # #?????????????????????????? | | #?????# """ # """#?????????????????????????? | | #?????# """ # """#?????????????????????????? | | #?????# """ # """#?????????????????????????? | | #?????# #? ????#########?????????????? | | ##############+####+####### ##+####+###???? | | ! ???? | | s < ????? | | @g ""??????? | | ################ ####/## ## T"??????? | | #??????????????# ## # "|"!" #?????????????? | | #?######???????# ## ss #""|"!""#?????????????? | | # ######??# ## "#########?????????????? | | #""" ## # ### ## T#?????????????????????? | | #""" """"""""# ## "#?????????????????????? | | #""" " "# # #?????????????????????? | | #""" " " ######?????????????????????? | | #""" " # ???????????????????????????? | | # #??????????????????????????? | | # # #??????????????????????????? | | + #??????????????????????????? | | # T +??????????????????????????? | | # # #??????????????????????????? | | ####### # #??????????????????????????? | | # " # ##??????????????????????????? | | # """" #???????????????????????????? | | # """" " +???????????????????????????? | | + """"" "# #???????????????????????????? | | # """"""""""""# #???????????????????????????? | | # ## # #???????????????????????????? | | ######### " # #???????????????????????????? | | ##???????# """ # #???????????????????????????? | | ?????????# """ + ###########?????????????????? | +----------------------------------------------------+ Best States ------------- Heat Dissipation 25 Energy Generation 5 Energy Capacity 100 Matter Stores 80 Matter Capacity 300 Sight Range 16 Robot Scan Range 14 Terrain Scan Density 10 Evasion (%) 44 Item Schematics ----------------- None Robot Schematics ------------------ None Fabricated ------------ Nothing Alien Tech Used ----------------- None Achievements -------------- None Challenges ------------ None Game ------ Seed ImprinterWeightStripper Manual? 0 Play Time 00:07:56 Cumulative 28.9 hours Start 2022.05.31 @ 23:46:39 End 2022.05.31 @ 23:51:45 Sessions 1 Manual Loads 0 Difficulty Rogue Special Mode None Game No. 14 Rogue 11 Adventurer 0 Explorer 3 Win Type - Total 1 Types 1/0/0/0/0/0/0/0/0 Lore% 22 Gallery% 32 Achievement% 29 Wizard Run 0 Options --------- ASCII 0 Keyboard 0 Movement Mouse Keybinds 0 Fullscreen 1 Font 18/SmallcapsGlow Map View 76x50 Tactical HUD 1 Map Filters NONE Filters NONE Steam 0 RUN: 446af386-9a2d-4ed5-8313-1f0b3265b0a2